[Event "Titled Tuesday Blitz June 6 Early 2023"]
[White "Melikyan, Gnel"]
[Black "Nepomniachtchi, Ian"]
[WhiteFideId "54109990"]
[BlackFideId "4168119"]
[WhiteElo "2138"]
[BlackElo "2781"]
[Result "0-1"]
[Round "5"]
[TimeControl "180+2"]
[Date "2023.06.06"]
[WhiteClock "0:00:03"]
[BlackClock "0:01:24"]
[Board "16"]

1. e4 {[%clk 0:02:59]}  c5 {[%clk 0:02:59]} 2. Nf3 {[%clk 0:02:58]}  e6 {[%clk 0:02:59]} 3. d4 {[%clk 0:02:58]}  cxd4 {[%clk 0:03:00]} 4. Nxd4 {[%clk 0:02:59]}  a6 {[%clk 0:03:01]} 5. Nc3 {[%clk 0:02:58]}  Nc6 {[%clk 0:03:00]} 6. Be3 {[%clk 0:02:52]}  Qc7 {[%clk 0:02:59]} 7. Be2 {[%clk 0:02:50]}  Nf6 {[%clk 0:02:57]} 8. O-O {[%clk 0:02:47]}  h5 {[%clk 0:02:51]} 9. Qd2 {[%clk 0:02:18]}  Ng4 {[%clk 0:02:49]} 10. Nf3 {[%clk 0:01:17]}  Bd6 {[%clk 0:02:45]} 11. h3 {[%clk 0:01:15]}  Bh2+ {[%clk 0:02:45]} 12. Kh1 {[%clk 0:01:15]}  Nxe3 {[%clk 0:02:46]} 13. Qxe3 {[%clk 0:01:13]}  Bf4 {[%clk 0:02:45]} 14. Qd3 {[%clk 0:01:12]}  Ne5 {[%clk 0:02:38]} 15. Nxe5 {[%clk 0:01:11]}  Bxe5 {[%clk 0:02:38]} 16. Nd1 {[%clk 0:01:04]}  g5 {[%clk 0:02:37]} 17. c3 {[%clk 0:01:03]}  b6 {[%clk 0:02:28]} 18. Ne3 {[%clk 0:01:01]}  Bb7 {[%clk 0:02:28]} 19. Rad1 {[%clk 0:00:56]}  g4 {[%clk 0:02:27]} 20. Nc4 {[%clk 0:00:34]}  Bf4 {[%clk 0:02:16]} 21. g3 {[%clk 0:00:27]}  d5 {[%clk 0:02:12]} 22. exd5 {[%clk 0:00:22]}  Bxd5+ {[%clk 0:02:09]} 23. Kh2 {[%clk 0:00:22]}  h4 {[%clk 0:02:02]} 24. Bxg4 {[%clk 0:00:02]}  Bxc4 {[%clk 0:01:52]} 25. Qe4 {[%clk 0:00:02]}  hxg3+ {[%clk 0:01:52]} 26. fxg3 {[%clk 0:00:03]}  Bxg3+ {[%clk 0:01:52]} 27. Kg1 {[%clk 0:00:03]}  Rc8 {[%clk 0:01:36]} 28. Rf3 {[%clk 0:00:04]}  Bh4 {[%clk 0:01:32]} 29. Qd4 {[%clk 0:00:03]}  Qc5 {[%clk 0:01:29]} 30. Qxc5 {[%clk 0:00:03]}  Rxc5 {[%clk 0:01:28]} 31. Rf4 {[%clk 0:00:03]}  Ke7 {[%clk 0:01:25]} 32. Rfd4 {[%clk 0:00:04]}  Bd5 {[%clk 0:01:24]} 33. b4 {[%clk 0:00:03]}  Rxc3 {[%clk 0:01:24]} 0-1


[Site "https://www.chess.com"]

[Event "Titled Tuesday Blitz June 6 Early 2023"]
[White "Korobov, Anton"]
[Black "Koshulyan, Egor A."]
[WhiteFideId "14105730"]
[BlackFideId "24237000"]
[WhiteElo "2638"]
[BlackElo "2216"]
[Result "1-0"]
[Round "5"]
[TimeControl "180+2"]
[Date "2023.06.06"]
[WhiteClock "0:00:17"]
[BlackClock "0:00:07"]
[Board "18"]

1. d4 {[%clk 0:02:55]}  d5 {[%clk 0:02:57]} 2. c3 {[%clk 0:02:55]}  c5 {[%clk 0:02:56]} 3. dxc5 {[%clk 0:02:54]}  e5 {[%clk 0:02:55]} 4. b4 {[%clk 0:02:52]}  Nf6 {[%clk 0:02:48]} 5. Nf3 {[%clk 0:02:51]}  e4 {[%clk 0:02:38]} 6. Nd4 {[%clk 0:02:51]}  Nc6 {[%clk 0:02:38]} 7. Bf4 {[%clk 0:02:50]}  Nh5 {[%clk 0:02:33]} 8. Bd2 {[%clk 0:02:43]}  Be7 {[%clk 0:02:28]} 9. e3 {[%clk 0:02:43]}  Nf6 {[%clk 0:02:28]} 10. c4 {[%clk 0:02:33]}  a5 {[%clk 0:02:23]} 11. b5 {[%clk 0:02:10]}  Ne5 {[%clk 0:02:22]} 12. cxd5 {[%clk 0:02:10]}  Bxc5 {[%clk 0:02:17]} 13. Nc3 {[%clk 0:02:05]}  O-O {[%clk 0:01:49]} 14. Qc2 {[%clk 0:01:59]}  Re8 {[%clk 0:01:40]} 15. Nb3 {[%clk 0:01:40]}  Bb6 {[%clk 0:01:30]} 16. Na4 {[%clk 0:01:29]}  Bc7 {[%clk 0:01:17]} 17. Rc1 {[%clk 0:01:12]}  Bd6 {[%clk 0:01:17]} 18. Nc3 {[%clk 0:01:04]}  Bf5 {[%clk 0:01:15]} 19. Nd4 {[%clk 0:01:04]}  Bg6 {[%clk 0:01:14]} 20. Be2 {[%clk 0:01:04]}  Rc8 {[%clk 0:01:03]} 21. Qb3 {[%clk 0:00:56]}  Qe7 {[%clk 0:00:55]} 22. O-O {[%clk 0:00:55]}  Nfg4 {[%clk 0:00:34]} 23. h3 {[%clk 0:00:52]}  Qh4 {[%clk 0:00:34]} 24. b6 {[%clk 0:00:46]}  Nf6 {[%clk 0:00:16]} 25. Ncb5 {[%clk 0:00:44]}  Bb8 {[%clk 0:00:16]} 26. Nc7 {[%clk 0:00:43]}  Red8 {[%clk 0:00:15]} 27. Bxa5 {[%clk 0:00:37]}  Qg5 {[%clk 0:00:09]} 28. Kh1 {[%clk 0:00:35]}  Nd3 {[%clk 0:00:09]} 29. Bxd3 {[%clk 0:00:28]}  exd3 {[%clk 0:00:10]} 30. f3 {[%clk 0:00:20]}  Qxe3 {[%clk 0:00:09]} 31. Ndb5 {[%clk 0:00:20]}  Qe5 {[%clk 0:00:06]} 32. Rce1 {[%clk 0:00:19]}  Qg3 {[%clk 0:00:06]} 33. d6 {[%clk 0:00:19]}  Ne8 {[%clk 0:00:04]} 34. Qd5 {[%clk 0:00:17]}  Nxd6 {[%clk 0:00:03]} 35. Nxd6 {[%clk 0:00:17]}  Rxd6 {[%clk 0:00:04]} 36. Qxb7 {[%clk 0:00:17]}  Rdd8 {[%clk 0:00:05]} 37. Qa6 {[%clk 0:00:16]}  d2 {[%clk 0:00:06]} 38. Rd1 {[%clk 0:00:17]}  Rd3 {[%clk 0:00:06]} 39. Qxc8+ {[%clk 0:00:16]}  Rd8 {[%clk 0:00:07]} 40. Qxd8# {[%clk 0:00:17]} 1-0


[Site "https://www.chess.com"]

[Event "Titled Tuesday Blitz June 6 Early 2023"]
[White "Sjugirov, Sanan"]
[Black "benny_aizenberg"]
[WhiteFideId "4189302"]
[WhiteElo "2569"]
[BlackElo "2716"]
[Result "1-0"]
[Round "5"]
[TimeControl "180+2"]
[Date "2023.06.06"]
[WhiteClock "0:00:49"]
[BlackClock "0:00:19"]
[Board "21"]

1. e4 {[%clk 0:02:56]}  c5 {[%clk 0:02:58]} 2. Nf3 {[%clk 0:02:56]}  Nc6 {[%clk 0:02:57]} 3. Bb5 {[%clk 0:02:55]}  e6 {[%clk 0:02:56]} 4. Bxc6 {[%clk 0:02:53]}  bxc6 {[%clk 0:02:55]} 5. d3 {[%clk 0:02:54]}  d6 {[%clk 0:02:49]} 6. e5 {[%clk 0:02:51]}  d5 {[%clk 0:02:49]} 7. O-O {[%clk 0:02:49]}  Ne7 {[%clk 0:02:47]} 8. c4 {[%clk 0:02:38]}  Ng6 {[%clk 0:02:46]} 9. Nc3 {[%clk 0:02:37]}  Be7 {[%clk 0:02:43]} 10. Qe2 {[%clk 0:02:33]}  O-O {[%clk 0:02:41]} 11. Re1 {[%clk 0:02:28]}  a5 {[%clk 0:02:22]} 12. Na4 {[%clk 0:02:27]}  Rb8 {[%clk 0:02:14]} 13. b3 {[%clk 0:02:26]}  Qc7 {[%clk 0:02:09]} 14. Ba3 {[%clk 0:02:21]}  Qa7 {[%clk 0:02:06]} 15. Qe3 {[%clk 0:02:18]}  d4 {[%clk 0:01:59]} 16. Qe4 {[%clk 0:02:17]}  Bd7 {[%clk 0:01:55]} 17. h4 {[%clk 0:02:16]}  f5 {[%clk 0:01:44]} 18. exf6 {[%clk 0:02:11]}  Rxf6 {[%clk 0:01:23]} 19. h5 {[%clk 0:02:10]}  Rf4 {[%clk 0:01:12]} 20. Qe2 {[%clk 0:02:09]}  Nf8 {[%clk 0:01:11]} 21. Ne5 {[%clk 0:02:04]}  Be8 {[%clk 0:01:11]} 22. Bc1 {[%clk 0:01:43]}  Rh4 {[%clk 0:00:59]} 23. h6 {[%clk 0:01:43]}  gxh6 {[%clk 0:00:57]} 24. g3 {[%clk 0:01:41]}  Rh5 {[%clk 0:00:56]} 25. Ng4 {[%clk 0:01:32]}  Bg5 {[%clk 0:00:43]} 26. Bxg5 {[%clk 0:01:27]}  Rxg5 {[%clk 0:00:44]} 27. Nf6+ {[%clk 0:01:19]}  Kg7 {[%clk 0:00:43]} 28. Ne4 {[%clk 0:01:19]}  Rf5 {[%clk 0:00:42]} 29. Nd6 {[%clk 0:01:14]}  Rg5 {[%clk 0:00:39]} 30. Qf3 {[%clk 0:00:53]}  Qe7 {[%clk 0:00:30]} 31. Nf5+ {[%clk 0:00:49]}  Rxf5 {[%clk 0:00:25]} 32. Qxf5 {[%clk 0:00:49]}  Bg6 {[%clk 0:00:21]} 33. Qe5+ {[%clk 0:00:49]}  Kf7 {[%clk 0:00:19]} 34. Qxb8 {[%clk 0:00:49]} 1-0


[Site "https://www.chess.com"]

[Event "Titled Tuesday Blitz June 6 Early 2023"]
[White "Souleidis, Georgios"]
[Black "Ibarra Jerez, Jose Carlos"]
[WhiteFideId "4206827"]
[BlackFideId "2226332"]
[WhiteElo "2401"]
[BlackElo "2631"]
[Result "0-1"]
[Round "5"]
[TimeControl "180+2"]
[Date "2023.06.06"]
[WhiteClock "0:00:09"]
[BlackClock "0:01:30"]
[Board "26"]

1. e4 {[%clk 0:03:00]}  Nc6 {[%clk 0:02:58]} 2. Nf3 {[%clk 0:03:00]}  d6 {[%clk 0:02:59]} 3. Bc4 {[%clk 0:02:55]}  Nf6 {[%clk 0:02:59]} 4. Nc3 {[%clk 0:02:54]}  g6 {[%clk 0:02:58]} 5. O-O {[%clk 0:02:54]}  Bg7 {[%clk 0:02:58]} 6. h3 {[%clk 0:02:54]}  O-O {[%clk 0:02:58]} 7. Re1 {[%clk 0:02:37]}  e5 {[%clk 0:02:55]} 8. d4 {[%clk 0:02:28]}  exd4 {[%clk 0:02:53]} 9. Nxd4 {[%clk 0:02:29]}  Re8 {[%clk 0:02:44]} 10. Nxc6 {[%clk 0:02:20]}  bxc6 {[%clk 0:02:44]} 11. Bg5 {[%clk 0:02:15]}  h6 {[%clk 0:02:43]} 12. Bh4 {[%clk 0:02:15]}  Rb8 {[%clk 0:02:41]} 13. Bb3 {[%clk 0:02:14]}  g5 {[%clk 0:02:25]} 14. Bg3 {[%clk 0:02:14]}  Nd7 {[%clk 0:02:26]} 15. Qh5 {[%clk 0:02:02]}  Qf6 {[%clk 0:02:20]} 16. Re3 {[%clk 0:01:51]}  Rf8 {[%clk 0:02:05]} 17. h4 {[%clk 0:01:31]}  Ne5 {[%clk 0:02:04]} 18. Bxe5 {[%clk 0:01:25]}  Qxe5 {[%clk 0:02:03]} 19. hxg5 {[%clk 0:01:18]}  hxg5 {[%clk 0:01:56]} 20. Rd1 {[%clk 0:00:59]}  g4 {[%clk 0:01:53]} 21. Qh4 {[%clk 0:00:52]}  Bf6 {[%clk 0:01:53]} 22. Qg3 {[%clk 0:00:48]}  Qxg3 {[%clk 0:01:51]} 23. Rxg3 {[%clk 0:00:48]}  Be5 {[%clk 0:01:51]} 24. Re3 {[%clk 0:00:41]}  Kg7 {[%clk 0:01:50]} 25. g3 {[%clk 0:00:25]}  Rh8 {[%clk 0:01:46]} 26. Kg2 {[%clk 0:00:25]}  Ba6 {[%clk 0:01:38]} 27. Rh1 {[%clk 0:00:23]}  Rxh1 {[%clk 0:01:36]} 28. Kxh1 {[%clk 0:00:24]}  Bd4 {[%clk 0:01:36]} 29. Nd1 {[%clk 0:00:12]}  Bxe3 {[%clk 0:01:33]} 30. Nxe3 {[%clk 0:00:13]}  Be2 {[%clk 0:01:32]} 31. Nf5+ {[%clk 0:00:08]}  Kf6 {[%clk 0:01:32]} 32. Nd4 {[%clk 0:00:09]}  Bf3+ {[%clk 0:01:30]} 0-1


[Site "https://www.chess.com"]

[Event "Titled Tuesday Blitz June 6 Early 2023"]
[White "Talibov, Shiroghlan"]
[Black "Jeet, Jain"]
[WhiteFideId "13429078"]
[BlackFideId "5073022"]
[WhiteElo "2274"]
[BlackElo "2067"]
[Result "1/2-1/2"]
[Round "5"]
[TimeControl "180+2"]
[Date "2023.06.06"]
[WhiteClock "0:00:06"]
[BlackClock "0:00:13"]
[Board "27"]

1. d4 {[%clk 0:03:00]}  c6 {[%clk 0:02:56]} 2. c4 {[%clk 0:02:55]}  d5 {[%clk 0:02:56]} 3. Nc3 {[%clk 0:02:49]}  Nf6 {[%clk 0:02:55]} 4. Nf3 {[%clk 0:02:49]}  e6 {[%clk 0:02:50]} 5. e3 {[%clk 0:02:48]}  Nbd7 {[%clk 0:02:49]} 6. Qc2 {[%clk 0:02:48]}  Be7 {[%clk 0:02:49]} 7. Bd3 {[%clk 0:02:46]}  b6 {[%clk 0:02:49]} 8. b3 {[%clk 0:02:45]}  Bb7 {[%clk 0:02:49]} 9. Bb2 {[%clk 0:02:46]}  Rc8 {[%clk 0:02:49]} 10. e4 {[%clk 0:02:46]}  dxe4 {[%clk 0:02:47]} 11. Nxe4 {[%clk 0:02:47]}  c5 {[%clk 0:02:48]} 12. dxc5 {[%clk 0:02:39]}  Nxe4 {[%clk 0:02:33]} 13. Bxe4 {[%clk 0:02:38]}  Bxe4 {[%clk 0:02:31]} 14. Qxe4 {[%clk 0:02:39]}  Nxc5 {[%clk 0:02:32]} 15. Qe2 {[%clk 0:02:40]}  Nd3+ {[%clk 0:02:29]} 16. Kf1 {[%clk 0:02:37]}  Nxb2 {[%clk 0:02:29]} 17. Qxb2 {[%clk 0:02:38]}  Bf6 {[%clk 0:02:29]} 18. Ne5 {[%clk 0:02:26]}  Rc5 {[%clk 0:02:27]} 19. f4 {[%clk 0:01:44]}  Bxe5 {[%clk 0:02:22]} 20. fxe5 {[%clk 0:01:42]}  Qd3+ {[%clk 0:02:23]} 21. Kg1 {[%clk 0:01:37]}  Qe3+ {[%clk 0:02:21]} 22. Qf2 {[%clk 0:01:36]}  Rxe5 {[%clk 0:02:15]} 23. Qxe3 {[%clk 0:01:31]}  Rxe3 {[%clk 0:02:16]} 24. Kf2 {[%clk 0:01:32]}  Rd3 {[%clk 0:02:15]} 25. Rad1 {[%clk 0:01:32]}  Rxd1 {[%clk 0:02:14]} 26. Rxd1 {[%clk 0:01:24]}  Ke7 {[%clk 0:02:15]} 27. Ke3 {[%clk 0:01:22]}  Rd8 {[%clk 0:02:15]} 28. Rc1 {[%clk 0:01:23]}  Rc8 {[%clk 0:02:10]} 29. h4 {[%clk 0:01:19]}  h5 {[%clk 0:02:07]} 30. Ke4 {[%clk 0:01:12]}  f5+ {[%clk 0:02:06]} 31. Kf4 {[%clk 0:00:59]}  Kf6 {[%clk 0:02:06]} 32. Rd1 {[%clk 0:00:53]}  e5+ {[%clk 0:02:06]} 33. Ke3 {[%clk 0:00:52]}  Ke6 {[%clk 0:02:06]} 34. Rd5 {[%clk 0:00:51]}  g6 {[%clk 0:02:01]} 35. a4 {[%clk 0:00:47]}  Rg8 {[%clk 0:01:53]} 36. a5 {[%clk 0:00:45]}  g5 {[%clk 0:01:52]} 37. axb6 {[%clk 0:00:41]}  axb6 {[%clk 0:01:53]} 38. Rb5 {[%clk 0:00:41]}  gxh4 {[%clk 0:01:24]} 39. Rxb6+ {[%clk 0:00:38]}  Kd7 {[%clk 0:01:24]} 40. Kf2 {[%clk 0:00:32]}  Ke7 {[%clk 0:01:12]} 41. b4 {[%clk 0:00:28]}  e4 {[%clk 0:01:12]} 42. Rh6 {[%clk 0:00:22]}  Rc8 {[%clk 0:01:01]} 43. Rxh5 {[%clk 0:00:22]}  Kf6 {[%clk 0:00:44]} 44. c5 {[%clk 0:00:22]}  Rb8 {[%clk 0:00:43]} 45. Ke3 {[%clk 0:00:16]}  Ke5 {[%clk 0:00:37]} 46. c6 {[%clk 0:00:13]}  Rxb4 {[%clk 0:00:37]} 47. c7 {[%clk 0:00:13]}  Rc4 {[%clk 0:00:35]} 48. Rh7 {[%clk 0:00:13]}  Rc2 {[%clk 0:00:19]} 49. Re7+ {[%clk 0:00:11]}  Kd6 {[%clk 0:00:20]} 50. Rf7 {[%clk 0:00:09]}  Ke6 {[%clk 0:00:19]} 51. Rh7 {[%clk 0:00:09]}  Rc3+ {[%clk 0:00:18]} 52. Kf4 {[%clk 0:00:08]}  e3 {[%clk 0:00:16]} 53. Kf3 {[%clk 0:00:07]}  Kd6 {[%clk 0:00:14]} 54. c8=Q {[%clk 0:00:06]}  Rxc8 {[%clk 0:00:14]} 55. Kxe3 {[%clk 0:00:07]}  Rc4 {[%clk 0:00:14]} 56. Kf3 {[%clk 0:00:06]}  Rg4 {[%clk 0:00:13]} 57. Ra7 {[%clk 0:00:06]}  Ke5 {[%clk 0:00:13]} 58. Ra5+ {[%clk 0:00:06]}  Kf6 {[%clk 0:00:13]} 59. Ra6+ {[%clk 0:00:06]}  Kg5 {[%clk 0:00:14]} 60. Ra8 {[%clk 0:00:06]}  Rg3+ {[%clk 0:00:15]} 61. Kf2 {[%clk 0:00:07]}  Rb3 {[%clk 0:00:16]} 62. Rg8+ {[%clk 0:00:07]}  Kf4 {[%clk 0:00:16]} 63. Kg1 {[%clk 0:00:06]}  h3 {[%clk 0:00:15]} 64. gxh3 {[%clk 0:00:06]}  Rxh3 {[%clk 0:00:16]} 65. Ra8 {[%clk 0:00:04]}  Rb3 {[%clk 0:00:14]} 66. Kf2 {[%clk 0:00:02]}  Rb2+ {[%clk 0:00:14]} 67. Kf1 {[%clk 0:00:03]}  Kg3 {[%clk 0:00:13]} 68. Ra3+ {[%clk 0:00:03]}  Kg4 {[%clk 0:00:13]} 69. Rc3 {[%clk 0:00:03]}  f4 {[%clk 0:00:13]} 70. Ra3 {[%clk 0:00:04]}  Rb5 {[%clk 0:00:12]} 71. Rc3 {[%clk 0:00:04]}  Rh5 {[%clk 0:00:12]} 72. Ra3 {[%clk 0:00:03]}  Rh2 {[%clk 0:00:12]} 73. Kg1 {[%clk 0:00:03]}  Re2 {[%clk 0:00:12]} 74. Kf1 {[%clk 0:00:04]}  Rb2 {[%clk 0:00:10]} 75. Rc3 {[%clk 0:00:04]}  f3 {[%clk 0:00:11]} 76. Rc8 {[%clk 0:00:04]}  Kg3 {[%clk 0:00:11]} 77. Rg8+ {[%clk 0:00:04]}  Kf4 {[%clk 0:00:12]} 78. Rf8+ {[%clk 0:00:04]}  Kg3 {[%clk 0:00:12]} 79. Rg8+ {[%clk 0:00:05]}  Kf4 {[%clk 0:00:12]} 80. Rf8+ {[%clk 0:00:05]}  Kg3 {[%clk 0:00:13]} 81. Rg8+ {[%clk 0:00:06]} 1/2-1/2


[Site "https://www.chess.com"]

[Event "Titled Tuesday Blitz June 6 Early 2023"]
[White "Grigorjev, Iljya"]
[Black "Sadykov, Ramil"]
[WhiteFideId "24159565"]
[BlackFideId "24113590"]
[WhiteElo "2323"]
[BlackElo "2245"]
[Result "1-0"]
[Round "5"]
[TimeControl "180+2"]
[Date "2023.06.06"]
[WhiteClock "0:00:07"]
[BlackClock "0:00:03"]
[Board "29"]

1. d4 {[%clk 0:03:00]}  d5 {[%clk 0:02:53]} 2. c4 {[%clk 0:03:00]}  e6 {[%clk 0:02:53]} 3. Nf3 {[%clk 0:03:00]}  Nf6 {[%clk 0:02:53]} 4. g3 {[%clk 0:03:00]}  Bb4+ {[%clk 0:02:53]} 5. Bd2 {[%clk 0:03:00]}  Be7 {[%clk 0:02:53]} 6. Bg2 {[%clk 0:03:00]}  O-O {[%clk 0:02:54]} 7. O-O {[%clk 0:03:01]}  c6 {[%clk 0:02:54]} 8. Qc2 {[%clk 0:03:01]}  Nbd7 {[%clk 0:02:54]} 9. Rd1 {[%clk 0:02:55]}  b6 {[%clk 0:02:48]} 10. Bf4 {[%clk 0:02:55]}  a5 {[%clk 0:02:36]} 11. cxd5 {[%clk 0:02:28]}  cxd5 {[%clk 0:02:35]} 12. Ne5 {[%clk 0:02:15]}  Nxe5 {[%clk 0:02:27]} 13. dxe5 {[%clk 0:02:15]}  Nd7 {[%clk 0:02:07]} 14. e4 {[%clk 0:02:14]}  d4 {[%clk 0:02:02]} 15. Rxd4 {[%clk 0:02:12]}  Bc5 {[%clk 0:02:02]} 16. Rd1 {[%clk 0:02:11]}  Qe7 {[%clk 0:02:00]} 17. Nc3 {[%clk 0:02:04]}  g5 {[%clk 0:01:53]} 18. Bc1 {[%clk 0:02:00]}  Nxe5 {[%clk 0:01:53]} 19. Na4 {[%clk 0:01:57]}  h6 {[%clk 0:01:38]} 20. Nxc5 {[%clk 0:01:51]}  Qxc5 {[%clk 0:01:35]} 21. Qxc5 {[%clk 0:01:41]}  bxc5 {[%clk 0:01:36]} 22. f4 {[%clk 0:01:39]}  gxf4 {[%clk 0:01:24]} 23. Bxf4 {[%clk 0:01:40]}  f6 {[%clk 0:00:45]} 24. Bxh6 {[%clk 0:01:40]}  Re8 {[%clk 0:00:44]} 25. Rac1 {[%clk 0:01:33]}  c4 {[%clk 0:00:44]} 26. Rf1 {[%clk 0:01:06]}  Kf7 {[%clk 0:00:40]} 27. Bf4 {[%clk 0:01:06]}  Kg6 {[%clk 0:00:34]} 28. Bxe5 {[%clk 0:00:57]}  fxe5 {[%clk 0:00:35]} 29. Rfd1 {[%clk 0:00:58]}  Rb8 {[%clk 0:00:33]} 30. Rd2 {[%clk 0:00:52]}  Ba6 {[%clk 0:00:28]} 31. Bf1 {[%clk 0:00:45]}  Rb4 {[%clk 0:00:25]} 32. a3 {[%clk 0:00:37]}  Rb3 {[%clk 0:00:14]} 33. Bxc4 {[%clk 0:00:36]}  Bxc4 {[%clk 0:00:15]} 34. Rxc4 {[%clk 0:00:37]}  Rf8 {[%clk 0:00:14]} 35. Rc5 {[%clk 0:00:32]}  Rfb8 {[%clk 0:00:02]} 36. Rxe5 {[%clk 0:00:32]}  Rxb2 {[%clk 0:00:02]} 37. Rxb2 {[%clk 0:00:33]}  Rxb2 {[%clk 0:00:03]} 38. Rxa5 {[%clk 0:00:27]}  Kf6 {[%clk 0:00:04]} 39. Rc5 {[%clk 0:00:23]}  Rd2 {[%clk 0:00:04]} 40. a4 {[%clk 0:00:12]}  Ra2 {[%clk 0:00:02]} 41. a5 {[%clk 0:00:12]}  e5 {[%clk 0:00:03]} 42. Rc6+ {[%clk 0:00:12]}  Kg5 {[%clk 0:00:03]} 43. a6 {[%clk 0:00:12]}  Kg4 {[%clk 0:00:03]} 44. Rf6 {[%clk 0:00:05]}  Kh3 {[%clk 0:00:03]} 45. Kf1 {[%clk 0:00:06]}  Kxh2 {[%clk 0:00:03]} 46. Rf2+ {[%clk 0:00:07]}  Rxf2+ {[%clk 0:00:02]} 47. Kxf2 {[%clk 0:00:07]}  Kh3 {[%clk 0:00:03]} 48. a7 {[%clk 0:00:07]} 1-0


[Site "https://www.chess.com"]

[Event "Titled Tuesday Blitz June 6 Early 2023"]
[White "Rustemov, Alexander"]
[Black "Manukyan, Sargis V."]
[WhiteFideId "4119002"]
[BlackFideId "13303465"]
[WhiteElo "2875"]
[BlackElo "2236"]
[Result "1-0"]
[Round "5"]
[TimeControl "180+2"]
[Date "2023.06.06"]
[WhiteClock "0:00:07"]
[BlackClock "0:00:08"]
[Board "31"]

1. d4 {[%clk 0:03:00]}  Nf6 {[%clk 0:02:59]} 2. c4 {[%clk 0:02:58]}  c5 {[%clk 0:02:59]} 3. d5 {[%clk 0:02:58]}  e6 {[%clk 0:02:59]} 4. Nc3 {[%clk 0:02:57]}  exd5 {[%clk 0:03:00]} 5. cxd5 {[%clk 0:02:58]}  Bd6 {[%clk 0:02:59]} 6. e4 {[%clk 0:02:58]}  O-O {[%clk 0:02:55]} 7. Nf3 {[%clk 0:02:54]}  Re8 {[%clk 0:02:54]} 8. Bg5 {[%clk 0:02:48]}  h6 {[%clk 0:02:51]} 9. Bxf6 {[%clk 0:02:38]}  Qxf6 {[%clk 0:02:50]} 10. Bd3 {[%clk 0:02:37]}  Bc7 {[%clk 0:02:46]} 11. O-O {[%clk 0:02:36]}  d6 {[%clk 0:02:44]} 12. h3 {[%clk 0:02:31]}  a6 {[%clk 0:02:45]} 13. a4 {[%clk 0:02:30]}  Nd7 {[%clk 0:02:44]} 14. Nd2 {[%clk 0:02:24]}  Rb8 {[%clk 0:02:41]} 15. a5 {[%clk 0:02:22]}  Ne5 {[%clk 0:02:12]} 16. Be2 {[%clk 0:02:21]}  Ng6 {[%clk 0:02:10]} 17. Nc4 {[%clk 0:02:13]}  Bd7 {[%clk 0:02:08]} 18. Re1 {[%clk 0:01:58]}  Nf4 {[%clk 0:01:55]} 19. Bf1 {[%clk 0:01:58]}  Qg5 {[%clk 0:01:30]} 20. Kh2 {[%clk 0:01:55]}  Bb5 {[%clk 0:01:08]} 21. Qf3 {[%clk 0:01:51]}  Bxc4 {[%clk 0:01:00]} 22. Bxc4 {[%clk 0:01:50]}  Ng6 {[%clk 0:01:00]} 23. Bf1 {[%clk 0:01:46]}  Ne5 {[%clk 0:00:50]} 24. Qe3 {[%clk 0:01:39]}  Qd8 {[%clk 0:00:47]} 25. f4 {[%clk 0:01:37]}  Ng6 {[%clk 0:00:47]} 26. Qf3 {[%clk 0:01:16]}  Bxa5 {[%clk 0:00:44]} 27. g3 {[%clk 0:01:14]}  Bxc3 {[%clk 0:00:38]} 28. Qxc3 {[%clk 0:01:08]}  Qb6 {[%clk 0:00:28]} 29. Bg2 {[%clk 0:01:06]}  Rbc8 {[%clk 0:00:20]} 30. e5 {[%clk 0:01:06]}  dxe5 {[%clk 0:00:15]} 31. fxe5 {[%clk 0:01:05]}  Qb4 {[%clk 0:00:15]} 32. e6 {[%clk 0:00:55]}  Qxc3 {[%clk 0:00:14]} 33. bxc3 {[%clk 0:00:56]}  fxe6 {[%clk 0:00:13]} 34. dxe6 {[%clk 0:00:56]}  Rc7 {[%clk 0:00:13]} 35. Reb1 {[%clk 0:00:49]}  Ree7 {[%clk 0:00:11]} 36. Rb6 {[%clk 0:00:49]}  Ne5 {[%clk 0:00:10]} 37. Rab1 {[%clk 0:00:44]}  Nc6 {[%clk 0:00:10]} 38. Re1 {[%clk 0:00:37]}  g5 {[%clk 0:00:09]} 39. Bd5 {[%clk 0:00:36]}  Kg7 {[%clk 0:00:10]} 40. Kg2 {[%clk 0:00:32]}  Nd8 {[%clk 0:00:10]} 41. c4 {[%clk 0:00:29]}  Nc6 {[%clk 0:00:10]} 42. Reb1 {[%clk 0:00:27]}  Nb4 {[%clk 0:00:09]} 43. Kf3 {[%clk 0:00:23]}  Kf6 {[%clk 0:00:10]} 44. Ke4 {[%clk 0:00:23]}  Kg7 {[%clk 0:00:06]} 45. Ke5 {[%clk 0:00:22]}  Nc6+ {[%clk 0:00:06]} 46. Kd6 {[%clk 0:00:22]}  Nd4 {[%clk 0:00:06]} 47. Rxb7 {[%clk 0:00:20]}  Rxb7 {[%clk 0:00:03]} 48. Rxb7 {[%clk 0:00:20]}  Rxb7 {[%clk 0:00:02]} 49. Bxb7 {[%clk 0:00:20]}  Kf6 {[%clk 0:00:03]} 50. Bxa6 {[%clk 0:00:13]}  Nf5+ {[%clk 0:00:03]} 51. Kxc5 {[%clk 0:00:12]}  Ne7 {[%clk 0:00:02]} 52. Kd6 {[%clk 0:00:10]}  Nf5+ {[%clk 0:00:01]} 53. Kd7 {[%clk 0:00:10]}  Ne7 {[%clk 0:00:01]} 54. c5 {[%clk 0:00:09]}  h5 {[%clk 0:00:01]} 55. Be2 {[%clk 0:00:07]}  Nd5 {[%clk 0:00:02]} 56. c6 {[%clk 0:00:06]}  Ne7 {[%clk 0:00:03]} 57. c7 {[%clk 0:00:06]}  Ng6 {[%clk 0:00:03]} 58. c8=Q {[%clk 0:00:06]}  Ne5+ {[%clk 0:00:04]} 59. Kd6 {[%clk 0:00:06]}  g4 {[%clk 0:00:05]} 60. Qh8+ {[%clk 0:00:05]}  Kg5 {[%clk 0:00:06]} 61. Qxe5+ {[%clk 0:00:05]}  Kh6 {[%clk 0:00:06]} 62. Qf6+ {[%clk 0:00:06]}  Kh7 {[%clk 0:00:07]} 63. Bd3+ {[%clk 0:00:06]}  Kg8 {[%clk 0:00:07]} 64. Qf7+ {[%clk 0:00:06]}  Kh8 {[%clk 0:00:08]} 65. Qh7# {[%clk 0:00:07]} 1-0


[Site "https://www.chess.com"]

[Event "Titled Tuesday Blitz June 6 Early 2023"]
[White "Svane, Frederik"]
[Black "Vlassov, Nikolai"]
[WhiteFideId "12923044"]
[BlackFideId "4103360"]
[WhiteElo "2502"]
[BlackElo "2324"]
[Result "1-0"]
[Round "5"]
[TimeControl "180+2"]
[Date "2023.06.06"]
[WhiteClock "0:00:03"]
[BlackClock "0:00:02"]
[Board "32"]

1. e4 {[%clk 0:02:55]}  Nc6 {[%clk 0:02:59]} 2. Nf3 {[%clk 0:02:54]}  d5 {[%clk 0:02:59]} 3. exd5 {[%clk 0:02:54]}  Qxd5 {[%clk 0:03:00]} 4. Nc3 {[%clk 0:02:55]}  Qa5 {[%clk 0:03:00]} 5. d4 {[%clk 0:02:41]}  Bg4 {[%clk 0:03:00]} 6. Bb5 {[%clk 0:02:36]}  O-O-O {[%clk 0:03:00]} 7. Bxc6 {[%clk 0:02:34]}  bxc6 {[%clk 0:03:00]} 8. h3 {[%clk 0:02:30]}  Qh5 {[%clk 0:02:59]} 9. Qe2 {[%clk 0:02:22]}  Bxf3 {[%clk 0:02:57]} 10. gxf3 {[%clk 0:02:22]}  e6 {[%clk 0:02:57]} 11. Bf4 {[%clk 0:02:12]}  Bb4 {[%clk 0:02:48]} 12. Rg1 {[%clk 0:01:49]}  Qxh3 {[%clk 0:02:14]} 13. Qa6+ {[%clk 0:01:24]}  Kd7 {[%clk 0:02:13]} 14. Qxa7 {[%clk 0:01:17]}  Bxc3+ {[%clk 0:02:04]} 15. bxc3 {[%clk 0:01:16]}  Qxf3 {[%clk 0:01:46]} 16. Bxc7 {[%clk 0:00:57]}  Qxc3+ {[%clk 0:01:22]} 17. Ke2 {[%clk 0:00:48]}  Qxc2+ {[%clk 0:01:15]} 18. Ke3 {[%clk 0:00:35]}  Qc3+ {[%clk 0:01:02]} 19. Ke2 {[%clk 0:00:29]}  Qc2+ {[%clk 0:01:00]} 20. Kf3 {[%clk 0:00:25]}  Qd3+ {[%clk 0:00:50]} 21. Kf4 {[%clk 0:00:19]}  Qd2+ {[%clk 0:00:30]} 22. Kg3 {[%clk 0:00:17]}  Qd3+ {[%clk 0:00:18]} 23. Kh2 {[%clk 0:00:16]}  Ne7 {[%clk 0:00:12]} 24. Bxd8+ {[%clk 0:00:14]}  Kxd8 {[%clk 0:00:12]} 25. Rab1 {[%clk 0:00:06]}  Nc8 {[%clk 0:00:05]} 26. Qxf7 {[%clk 0:00:04]}  Qf5 {[%clk 0:00:01]} 27. Qxf5 {[%clk 0:00:03]}  exf5 {[%clk 0:00:02]} 28. Rxg7 {[%clk 0:00:04]}  Re8 {[%clk 0:00:02]} 29. Kg2 {[%clk 0:00:03]} 1-0


[Site "https://www.chess.com"]